fUSD/lending_fUSD_20240607
["ID","MTS","AMOUNT","RATE_DAILY","PERIOD"]
[328710242,1717720347158,-500.0,0.00029863,4]
[328710243,1717720347168,-500.0,0.00029863,4]
[328710244,1717720347177,-500.0,0.00029863,4]
[328710245,1717720347187,-1391.01,0.00029863,4]
[328710246,1717720347196,-500.0,0.00029863,4]
[328710247,1717720347206,-500.0,0.00029863,4]
[328710248,1717720347215,-500.0,0.00029863,4]
[328710249,1717720347224,-891.73,0.00029863,4]
[328710250,1717720347234,-500.0,0.00029863,4]
[328710251,1717720347243,-1391.01,0.00029863,4]
[328710252,1717720347253,-500.0,0.00029863,4]
[328710253,1717720347263,-301.81754116,0.00029863,4]
[328710254,1717720347273,-500.0,0.00029863,4]
[328710255,1717720347282,-891.73,0.00029863,4]
[328710256,1717720347292,-500.0,0.00029863,4]
[328710257,1717720347301,-522.27804841,0.00029863,4]
[328710258,1717720347311,-500.0,0.00029863,4]
[328710259,1717720347320,-1391.01,0.00029863,4]
[328710260,1717720347329,-891.73,0.00029863,4]
[328710261,1717720347339,-500.0,0.00029863,4]
[328710262,1717720347348,-1391.01,0.00029863,4]
[328710263,1717720347357,-500.0,0.00029863,4]
[328710264,1717720347367,-500.0,0.00029863,4]
[328710265,1717720347376,-500.0,0.00029863,4]
[328710266,1717720347385,-1391.01,0.00029863,4]
[328710267,1717720347394,-500.0,0.00029863,4]
[328710268,1717720347404,-891.82,0.00029863,4]
[328710269,1717720347413,-500.0,0.00029863,4]
[328710270,1717720347422,-500.0,0.00029863,4]
[328710271,1717720347432,-151.0,0.00029884,2]
[328710272,1717720347442,-1862.49183356,0.000299,15]
[328710273,1717720347451,-2322.42572279,0.000299,15]
[328710274,1717720347460,-390.50061639,0.000299,2]
[328710275,1717720347470,-4435.00016019,0.000299,2]
[328710276,1717720347479,-333.81044878,0.000299,2]
[328710277,1717720347488,-564.73478236,0.000299,2]
[328710278,1717720347498,-161.57289889,0.00029912,2]
[328710279,1717720347515,-154.43087315,0.0002992,2]
[328710280,1717720347524,-152.9036605,0.00029924,2]
[328710281,1717720347534,-203.0,0.0002995,2]
[328710282,1717720347543,-152.9036605,0.00029953,2]
[328710283,1717720347556,-170.58240983,0.00029954,2]
[328710284,1717720347566,-153.33863863,0.0002996,2]
[328710285,1717720347575,-267.74983201,0.00029968,2]
[328710286,1717720347586,-152.9036605,0.00029981,2]
[328710287,1717720347596,-657.21402684,0.00029982,2]
[328710288,1717720347605,-76079.9592478,0.00029987,2]
[328710289,1717720347615,-861.70626557,0.00029998,3]
[328710290,1717720347625,-155.76415235,0.00029998,2]
[328710291,1717720347635,-177.06048771,0.00029998,2]
[328710292,1717720347645,-417.45255306,0.00029998,2]
[328710293,1717720347655,-198.028393,0.00029998,2]
[328710294,1717720347664,-158.14562434,0.00029998,2]
[328710295,1717720347674,-156.82039289,0.00029998,2]
[328710296,1717720347683,-1768.06809906,0.00029998,2]
[328710297,1717720347693,-195.42376414,0.00029998,2]
[328710298,1717720347702,-155.0,0.00029998,2]
[328710299,1717720347712,-227.85736488,0.00029998,2]
[328710300,1717720347722,-158.23273861,0.00029998,2]
[328710301,1717720347731,-200.1270342,0.00029998,2]
[328710302,1717720347740,-268.32530534,0.00029998,2]
[328710303,1717720347750,-266.46420594,0.00029998,2]
[328710304,1717720347759,-413.57156892,0.00029998,2]
[328710305,1717720347768,-203.79297903,0.00029998,2]
[328710306,1717720347781,-405.75478153,0.00029998,2]
[328710307,1717720347792,-150.01,0.00029999,2]
[328710308,1717720347801,-19925.31105489,0.0003,2]
[328710309,1717720347832,-781.83159,0.00029863,4]
[328710310,1717720347844,-609.17841,0.00029863,4]
[328710311,1717720347854,-123.89689,0.00029863,4]
[328710312,1717720347866,-376.10311,0.00029863,4]
[328710313,1717720347875,-384.17227611,0.0003,2]
[328710314,1717720347887,-972.544304,0.0003,2]
[328710315,1717720347898,-1207.999264,0.0003,2]
[328710316,1717720347909,-2692.8371357,0.0003,2]
[328710317,1717720348443,-274.0,0.0002747,5]
[328710318,1717720348453,-155.0,0.00027479,2]
[328710319,1717720348463,-164.87227473,0.00027479,2]
[328710320,1717720348473,-304.02821629,0.00027479,2]
[328710321,1717720348483,-156.34146276,0.00027479,2]
[328710322,1717720348492,-1226.6045749,0.00029,2]
[328710323,1717720348504,-725.45193706,0.00029,2]
[328710324,1717720348520,-501.15263784,0.00029,2]
[328710325,1717720348531,-1226.6045749,0.00029,2]
[328710326,1717720348540,-1226.6045749,0.00029,2]
[328710327,1717720348550,-1226.6045749,0.00029,2]
[328710328,1717720348560,-1226.6045749,0.00029,2]
[328710329,1717720348570,-1226.6045749,0.00029,2]
[328710330,1717720348580,-1226.6045749,0.00029,2]
[328710331,1717720348590,-1226.6045749,0.00029,2]
[328710332,1717720348600,-500.0,0.00029863,4]
[328710333,1717720348611,-403.89672237,0.00029863,4]
[328710334,1717720348632,-96.10327763,0.00029863,4]
[328710335,1717720348642,-264.3449632,0.00029863,4]
[328710336,1717720348659,-235.6550368,0.00029863,4]
[328710337,1717720348668,-266.48248586,0.00029863,4]
[328710338,1717720348680,-924.7391995,0.00029863,4]
[328710339,1717720348716,-199.78831464,0.00029863,4]
[328710340,1717720348727,-500.0,0.00029863,4]
[328710341,1717720348736,-500.0,0.00029863,4]
[328710342,1717720348747,-496.30168536,0.00029863,4]
[328710343,1717720348771,-571.695,0.00029863,4]
[328710344,1717720406919,3600.0,0.00033248,30]
[328710345,1717720544035,690.0,0.00033248,30]
[328710346,1717720568961,150.0,0.00033248,30]
[328710352,1717720632487,8559.00776406,0.00033248,30]
[328710353,1717720647355,150.0,0.00033248,30]
[328710354,1717720663852,190.0,0.00033248,30]
[328710356,1717721081388,1232978.18033277,0.00033214,30]
[328710385,1717721431894,-339.85299,0.00017259,2]
[328710386,1717721432036,-441.75613007,0.00017259,2]
[328710387,1717721432046,-120.67931531,0.00018851,2]
[328710388,1717721432058,-383.34068469,0.00018851,2]
[328710389,1717721432068,-411.5495904,0.00019451,2]
[328710390,1717721432078,-150.0,0.00019725,2]
[328710391,1717721432088,-150.0,0.00019725,2]
[328710392,1717721432098,-171.90699041,0.000199,3]
[328710393,1717721432110,-512.00580515,0.000199,3]
[328710394,1717721432120,-499.99,0.0002,2]
[328710395,1717721432130,-187.42794197,0.0002,2]
[328710396,1717721432140,-1010.86316582,0.0002,2]
[328710397,1717721432150,-226.60187199,0.000201,2]
[328710398,1717721432159,-155.0,0.00020435,2]
[328710399,1717721432169,-200.0,0.00020726,2]
[328710400,1717721432180,-291.37,0.00020951,2]
[328710401,1717721432190,-250.0,0.00021084,2]
[328710402,1717721432201,-1027.37,0.00021095,2]
[328710403,1717721432211,-250.0,0.00021099,2]
[328710404,1717721432220,-504.02,0.00021115,2]
[328710405,1717721432230,-166.91,0.00021174,2]
[328710406,1717721432240,-166.91,0.00021332,2]
[328710407,1717721432250,-166.91,0.0002149,2]
[328710408,1717721432260,-500.16392923,0.00021626,2]
[328710409,1717721432272,-496.346633,0.00021626,2]
[328710410,1717721432288,-730.35536255,0.00021626,2]
[328710411,1717721432300,-264.37658424,0.00021626,2]
[328710412,1717721432316,-3142.88092348,0.00021626,2]
[328710413,1717721432332,-6947.77168517,0.00021626,2]
[328710414,1717721432344,-684.36388921,0.00021626,2]
[328710415,1717721432365,-875.59927975,0.00021626,2]
[328710416,1717721432377,-1536.45624291,0.00021626,2]
[328710417,1717721432388,-308.14008547,0.00021626,2]
[328710418,1717721432410,-8393.54538499,0.00021626,2]
[328710419,1717721432420,-166.91,0.00021647,2]
[328710420,1717721432430,-210.0,0.00021698,2]
[328710421,1717721432440,-404.97,0.00021744,2]
[328710422,1717721432450,-166.91,0.00021805,2]
[328710423,1717721432460,-1000.0,0.000219,2]
[328710424,1717721432470,-175.89,0.00021918,2]
[328710425,1717721432479,-250.0,0.00021918,2]
[328710426,1717721432489,-166.91,0.00021962,2]
[328710427,1717721432500,-790.03320351,0.00022,2]
[328710428,1717721432510,-166.91,0.0002212,2]
[328710429,1717721432520,-166.91,0.00022278,2]
[328710430,1717721432529,-1000.0,0.000225,2]
[328710432,1717721432539,-1832.43615078,0.00022671,2]
[328710435,1717721432551,-2410.51725635,0.00022671,2]
[328710437,1717721432561,-15923.71871465,0.00022681,2]
[328710439,1717721432573,-2102.76488535,0.00022681,2]
[328710441,1717721432583,-211.3915,0.00022681,2]
[328710443,1717721432593,-1256.0687,0.00022681,2]
[328710445,1717721432603,-825.753,0.00022681,2]
[328710447,1717721432612,-257.7165,0.00022681,2]
[328710449,1717721432622,-1205.6165,0.00022681,2]
[328710451,1717721432632,-1199.32,0.00022771,2]
[328710453,1717721432642,-1199.32,0.00022771,2]
[328710455,1717721432651,-203.58218417,0.0002278,2]
[328710457,1717721432661,-500.0,0.0002278,2]
[328710459,1717721432671,-391.06069415,0.0002278,2]
[328710461,1717721432681,-500.0,0.0002278,2]
[328710463,1717721432690,-500.0,0.0002278,2]
[328710465,1717721432700,-500.0,0.0002278,2]
[328710467,1717721432710,-500.0,0.0002278,2]
[328710469,1717721432719,-166.94825862,0.0002278,2]
[328710472,1717721432729,-500.0,0.0002278,2]
[328710474,1717721432738,-500.0,0.0002278,2]
[328710476,1717721432750,-500.0,0.0002278,2]
[328710478,1717721432760,-17.87869771,0.0002278,2]
[328710480,1717721432773,-482.12130229,0.0002278,2]
[328710482,1717721432783,-6110.59310091,0.00022781,2]
[328710484,1717721432795,-3665.1967325,0.00022781,2]
[328710513,1717721437839,-1428.22800011,0.00022781,2]
[328710514,1717721437851,-4192.50992066,0.00022781,2]
[328710515,1717721437866,-71290.02474519,0.00022781,2]
[328710517,1717721437883,-4474.43573524,0.00022781,2]
[328710520,1717721437905,-1272.39642856,0.00022781,2]
[328710522,1717721437918,-302.52178472,0.00022781,2]
[328710523,1717721438223,-683.175201,0.00022781,2]
[328710524,1717721438235,-524.18265939,0.00022781,2]
[328710525,1717721438247,-330.2694009,0.00022781,2]
[328710526,1717721438262,-5019.44942,0.00022781,2]
[328710527,1717721438373,-611.56751101,0.00022781,2]
[328710528,1717721438384,-1340.26476761,0.00022781,2]
[328710529,1717721438396,-1258.28539142,0.00022781,2]
[328710530,1717721438411,-254.99999,0.00022781,2]
[328710531,1717721438422,-27838.68654774,0.00022781,2]
[328710532,1717721438434,-382.73609465,0.00022781,2]
[328710533,1717721438445,-21098.51453184,0.00022781,2]
[328710534,1717721438457,-451.57864314,0.00022781,2]
[328710536,1717721438477,-49439.74748028,0.00022781,2]
[328710767,1717721440742,-337.3518643,0.00022781,2]
[328710784,1717721441655,-42693.28404883,0.00022781,2]
[328710785,1717721441665,-728.70285388,0.00023243,2]
[328710786,1717721441675,-440.0,0.00023343,2]
[328710787,1717721441684,-162.311,0.00023343,2]
[328710788,1717721441694,-918.655,0.00023343,2]
[328710789,1717721441703,-340.869,0.00023343,2]
[328710790,1717721441713,-686.286,0.00023343,2]
[328710791,1717721441722,-3864.867,0.00023343,2]
[328710792,1717721441731,-154.458,0.00023343,2]
[328710793,1717721441741,-504.02,0.00023379,2]
[328710794,1717721441752,-1027.37,0.00023835,2]
[328710795,1717721441761,-728.70285381,0.00024194,2]
[328710796,1717721441770,-180.0,0.00024314,2]
[328710797,1717721441780,-154.06,0.00024384,2]
[328710798,1717721441789,-868.0,0.000247,2]
[328710799,1717721441799,-1000.0,0.00024775,2]
[328710800,1717721441807,-171.91822767,0.00024799,2]
[328710801,1717721441817,-6792.60300481,0.000249,2]
[328710802,1717721441827,-325.78398581,0.00025,2]
[328710803,1717721441839,-158.98454596,0.00025,2]
[328710804,1717721441850,-1250.0,0.00025,2]
[328710805,1717721441859,-325.78398581,0.00025075,2]
[328710806,1717721441868,-155.0,0.00025076,2]
[328710807,1717721441879,-225.04645167,0.00025077,2]
[328710808,1717721441889,-728.70285381,0.00025145,2]
[328710809,1717721441898,-340.88,0.00025205,2]
[328710810,1717721441910,-504.02,0.00025643,2]
[328710811,1717721441921,-167.0,0.00025719,2]
[328710812,1717721441931,-163.37,0.0002589,2]
[328710813,1717721441940,-500.0,0.00025939,2]
[328710814,1717721441949,-500.0,0.00025939,2]
[328710815,1717721441959,-728.70285381,0.00026096,2]
[328710816,1717721441968,-1027.37,0.00026575,2]
[328710817,1717721441978,-353.81286397,0.00026597,2]
[328710818,1717721441987,-2055.20344569,0.000266,2]
[328710819,1717721442000,-1300.0,0.00027,2]
[328710820,1717721442010,-400.0,0.00027035,2]
[328710821,1717721442020,-200.0,0.00027035,2]
[328710822,1717721442029,-728.70285381,0.00027047,2]
[328710823,1717721442039,-167.0,0.00027134,2]
[328710824,1717721442049,-176.98,0.00027281,2]
[328710825,1717721442059,-2600.88828244,0.00027376,2]
[328710826,1717721442068,-215.0,0.0002738,2]
[328710827,1717721442078,-807.52617473,0.0002739,2]
[328710828,1717721442087,-177.15,0.00027397,2]
[328710829,1717721442098,-868.0,0.000274,2]
[328710830,1717721442108,-156.64,0.000274,2]
[328710831,1717721442117,-150.0,0.00027479,2]
[328710832,1717721442128,-1000.0,0.00027872,2]
[328710833,1717721442138,-1961.85666371,0.000279,10]
[328710834,1717721442148,-329.75190576,0.000279,2]
[328710835,1717721442158,-504.02,0.00027907,2]
[328710836,1717721442167,-1199.32,0.0002799,2]
[328710837,1717721442179,-1199.32,0.0002799,2]
[328710838,1717721442189,-1199.32,0.0002799,2]
[328710839,1717721442199,-728.70285381,0.00027998,2]
[328710840,1717721442211,-204.80687332,0.00027999,2]
[328710841,1717721442220,-223000.0,0.00028,3]
[328710842,1717721442230,-468.61489945,0.00028295,2]
[328710843,1717721442240,-151.0,0.00028296,7]
[328710844,1717721442251,-231.78427429,0.00028432,2]
[328710845,1717721442260,-358.32103266,0.00028448,2]
[328710846,1717721442270,-262.51828012,0.0002849,2]
[328710847,1717721442281,-200000.0,0.000285,3]
[328710848,1717721442291,-167.0,0.00028548,2]
[328710849,1717721442301,-151.0,0.0002858,7]
[328710850,1717721442310,-19691.31609237,0.000287,2]
[328710851,1717721442319,-155.0,0.00028745,2]
[328710852,1717721442330,-196.44,0.00028746,2]
[328710853,1717721442339,-151.0,0.00028864,7]
[328710854,1717721442348,-728.70285381,0.00028949,2]
[328710855,1717721442358,-800.0,0.00028959,2]
[328710856,1717721442367,-152.04,0.0002899,2]
[328710857,1717721442376,-265.91210066,0.00028999,2]
[328710858,1717721442386,-24244.57964716,0.00029,2]
[328710859,1717721442395,-150.000001,0.00029,2]
[328710860,1717721442404,-200000.0,0.00029,3]
[328710861,1717721442413,-4167.36702522,0.00029,2]
[328710862,1717721442423,-1350.0,0.00029,2]
[328710863,1717721442432,-358.32103265,0.00029105,2]
[328710864,1717721442441,-151.0,0.00029148,7]
[328710865,1717721442451,-2311.0,0.000292,4]
[328710866,1717721442462,-926.93881522,0.00029264,2]
[328710867,1717721442471,-200.85347,0.000293,2]
[328710868,1717721442481,-389.16031964,0.00029338,2]
[328710869,1717721442491,-152.84787854,0.00029341,2]
[328710870,1717721442501,-160.49438585,0.00029375,2]
[328710871,1717721442510,-152.84787854,0.00029415,2]
[328710872,1717721442519,-151.0,0.00029432,7]
[328710873,1717721442528,-152.84787854,0.00029449,2]
[328710874,1717721442538,-154.29370179,0.0002946,2]
[328710875,1717721442548,-157.94005552,0.00029467,2]
[328710876,1717721442557,-155.73225935,0.00029531,2]
[328710877,1717721442567,-155.36435156,0.00029543,2]
[328710878,1717721442576,-156.67493518,0.00029562,2]
[328710879,1717721442586,-155.55650691,0.00029562,2]
[328710880,1717721442595,-154.11066435,0.00029567,2]
[328710881,1717721442605,-244.0,0.00029572,5]
[328710882,1717721442615,-154.29370179,0.0002958,2]
[328710883,1717721442624,-154.54095258,0.0002961,2]
[328710884,1717721442633,-389.16031964,0.00029623,2]
[328710885,1717721442643,-154.36218104,0.00029631,2]
[328710886,1717721442652,-321.06167849,0.00029632,2]
[328710887,1717721442661,-613.67647,0.00029645,2]
[328710888,1717721442671,-154.36218104,0.0002965,2]
[328710889,1717721442681,-10000.0,0.00029663,2]
[328710890,1717721442691,-1000.0,0.00029663,2]
[328710891,1717721442700,-7500.0,0.00029663,2]
[328710892,1717721442710,-155.16703469,0.00029672,2]
[328710893,1717721442720,-321.06167849,0.00029673,2]
[328710894,1717721442730,-155.16703469,0.00029683,2]
[328710895,1717721442740,-155.73225935,0.00029691,2]
[328710896,1717721442750,-311.18491875,0.00029699,2]
[328710897,1717721442760,-11655.8735053,0.000297,2]
[328710898,1717721442769,-155.16703469,0.00029711,2]
[328710899,1717721442779,-151.0,0.00029716,7]
[328710900,1717721442788,-152.84787854,0.00029729,2]
[328710901,1717721442797,-154.11066435,0.00029747,2]
[328710902,1717721442807,-500.0,0.0002976,2]
[328710903,1717721442817,-358.32103265,0.00029762,2]
[328710904,1717721442826,-165.56280736,0.00029763,2]
[328710905,1717721442836,-1479.5389971,0.00029763,2]
[328710906,1717721442849,-270.5514545,0.00029763,2]
[328710907,1717721442859,-33188.4792,0.00029763,2]
[328710908,1717721442868,-100000.0,0.00029763,2]
[328710909,1717721442877,-500.0,0.00029763,2]
[328710910,1717721442888,-300.0,0.00029763,2]
[328710911,1717721442897,-1000.0,0.00029763,2]
[328710912,1717721442907,-276.6812,0.00029763,2]
[328710913,1717721442918,-165.56280735,0.0002979,2]
[328710914,1717721442927,-154.11066435,0.00029792,2]
[328710915,1717721442936,-1183.37776132,0.000298,2]
[328710916,1717721442946,-166.66666666,0.00029815,2]
[328710917,1717721442955,-165.56280735,0.00029818,2]
[328710918,1717721442964,-154.55323405,0.00029827,2]
[328710919,1717721442973,-152.84787854,0.00029828,2]
[328710920,1717721442982,-1479.53899709,0.00029832,2]
[328710921,1717721442991,-270.55145449,0.00029832,2]
[328710922,1717721443001,-800.0,0.00029836,2]
[328710923,1717721443010,-165.56280735,0.00029845,2]
[328710924,1717721443019,-262.51828012,0.00029853,2]
[328710925,1717721443031,-262.51828012,0.00029853,2]
[328710926,1717721443041,-2055825.27623445,0.00029859,4]
[328710927,1717721443050,-564.69401449,0.00029861,2]
[328710928,1717721443060,-325.73352634,0.00029861,2]
[328710929,1717721443071,-155.0,0.00029861,2]
[328710930,1717721443082,-1275.47662783,0.00029861,2]
[328710931,1717721443091,-155.0,0.00029861,2]
[328710932,1717721443102,-155.0,0.00029861,2]
[328710933,1717721443111,-1820.55608381,0.00029861,2]
[328710934,1717721443122,-206.37705666,0.00029861,2]
[328710935,1717721443133,-3029.36809523,0.00029861,2]
[328710936,1717721443143,-545.04375402,0.00029861,2]
[328710937,1717721443152,-156.01684319,0.00029861,2]
[328710938,1717721443162,-4541.71318104,0.00029861,2]
[328710939,1717721443172,-168.1727453,0.00029861,2]
[328710940,1717721443183,-155.96188869,0.00029861,2]
[328710941,1717721443194,-155.0,0.00029861,2]
[328710942,1717721443205,-374.74148541,0.00029861,2]
[328710943,1717721443216,-154.54095258,0.00029861,2]
[328710944,1717721443226,-541.80210205,0.00029861,2]
[328710945,1717721443236,-620.48288013,0.00029862,2]
[328710946,1717721443245,-215.13326472,0.00029862,2]
[328710947,1717721443254,-3889.46224916,0.00029862,2]
[328710948,1717721443264,-166.66666666,0.00029862,2]
[328710949,1717721443274,-18362.60232864,0.00029863,13]
[328710950,1717721443286,-213.05221993,0.00029863,5]
[328710951,1717721443296,-500.0,0.00029863,4]
[328710952,1717721443306,-500.0,0.00029863,4]
[328710953,1717721443316,-502.69412422,0.00029863,4]
[328710954,1717721443326,-500.0,0.00029863,4]
[328710955,1717721443336,-500.0,0.00029863,4]
[328710956,1717721443345,-524.66766858,0.00029863,4]
[328710957,1717721443356,-500.0,0.00029863,4]
[328710958,1717721443367,-500.0,0.00029863,4]
[328710959,1717721443378,-500.0,0.00029863,4]
[328710960,1717721443388,-500.0,0.00029863,4]
[328710961,1717721443398,-500.0,0.00029863,4]
[328710962,1717721443408,-500.0,0.00029863,4]
[328710963,1717721443421,-515.67864063,0.00029863,4]
[328710964,1717721443431,-500.0,0.00029863,4]
[328710965,1717721443440,-613.92032735,0.00029863,4]
[328710966,1717721443449,-509.91795007,0.00029863,4]
[328710967,1717721443459,-500.0,0.00029863,4]
[328710968,1717721443468,-508.05468482,0.00029863,4]
[328710969,1717721443477,-518.52327778,0.00029863,4]
[328710970,1717721443488,-206.27705642,0.00029863,4]
[328710971,1717721443498,-511.2471682,0.00029863,4]
[328710972,1717721443509,-500.0,0.00029863,4]
[328710973,1717721443518,-545.0860409,0.00029863,4]
[328710974,1717721443527,-511.04657691,0.00029863,4]
[328710975,1717721443536,-500.0,0.00029863,4]
[328710976,1717721443545,-500.0,0.00029863,4]
[328710977,1717721443555,-500.0,0.00029863,4]
[328710978,1717721443564,-500.0,0.00029863,4]
[328710979,1717721443576,-500.0,0.00029863,4]
[328710980,1717721443585,-500.0,0.00029863,4]
[328710981,1717721443595,-500.0,0.00029863,4]
[328710982,1717721443604,-524.56105241,0.00029863,4]
[328710983,1717721443614,-376.79042114,0.00029863,4]
[328710984,1717721443625,-500.0,0.00029863,4]
[328710985,1717721443634,-500.0,0.00029863,4]
[328710986,1717721443643,-507.41219693,0.00029863,4]
[328710987,1717721443653,-500.0,0.00029863,4]
[328710988,1717721443663,-500.0,0.00029863,4]
[328710989,1717721443672,-500.0,0.00029863,4]
[328710990,1717721443681,-500.0,0.00029863,4]
[328710991,1717721443691,-500.0,0.00029863,4]
[328710992,1717721443700,-511.13147039,0.00029863,4]
[328710993,1717721443709,-529.23810908,0.00029863,4]
[328710995,1717721443718,-500.0,0.00029863,4]
[328710997,1717721443727,-500.0,0.00029863,4]
[328710999,1717721443737,-500.0,0.00029863,4]
[328711001,1717721443747,-500.0,0.00029863,4]
[328711003,1717721443757,-613.49350354,0.00029863,4]
[328711005,1717721443767,-521.48189266,0.00029863,4]
[328711007,1717721443776,-500.0,0.00029863,4]
[328711008,1717721443786,-357.32030613,0.00029863,4]
[328711009,1717721443795,-500.0,0.00029863,4]
[328711010,1717721443804,-500.0,0.00029863,4]
[328711011,1717721443814,-500.0,0.00029863,4]
[328711012,1717721443825,-500.0,0.00029863,4]
[328711013,1717721443837,-500.0,0.00029863,4]
[328711014,1717721443849,-500.0,0.00029863,4]
[328711015,1717721443859,-500.0,0.00029863,4]
[328711016,1717721443869,-539.49650441,0.00029863,4]
[328711017,1717721443878,-590.01,0.00029863,4]
[328711018,1717721443887,-500.0,0.00029863,4]
[328711019,1717721443897,-540.47389286,0.00029863,4]
[328711020,1717721443908,-500.0,0.00029863,4]
[328711021,1717721443917,-500.0,0.00029863,4]
[328711022,1717721443926,-507.2957,0.00029863,4]
[328711023,1717721443938,-500.0,0.00029863,4]
[328711024,1717721443948,-500.0,0.00029863,4]
[328711025,1717721443958,-509.97022761,0.00029863,4]
[328711026,1717721443968,-526.78757844,0.00029863,4]
[328711027,1717721443977,-515.49853733,0.00029863,4]
[328711028,1717721443987,-500.0,0.00029863,4]
[328711029,1717721443996,-500.0,0.00029863,4]
[328711030,1717721444006,-500.0,0.00029863,4]
[328711031,1717721444015,-500.0,0.00029863,4]
[328711032,1717721444024,-500.0,0.00029863,4]
[328711033,1717721444034,-250.53486517,0.00029863,4]
[328711034,1717721444043,-500.0,0.00029863,4]
[328711035,1717721444053,-574.13714897,0.00029863,4]
[328711036,1717721444062,-517.27846323,0.00029863,4]
[328711037,1717721444071,-500.0,0.00029863,4]
[328711038,1717721444080,-500.0,0.00029863,4]
[328711039,1717721444089,-500.0,0.00029863,4]
[328711040,1717721444098,-500.0,0.00029863,4]
[328711041,1717721444107,-500.0,0.00029863,4]
[328711042,1717721444116,-500.0,0.00029863,4]
[328711043,1717721444125,-500.0,0.00029863,4]
[328711044,1717721444134,-500.0,0.00029863,4]
[328711045,1717721444143,-500.0,0.00029863,4]
[328711046,1717721444152,-500.0,0.00029863,4]
[328711047,1717721444162,-500.0,0.00029863,4]
[328711048,1717721444171,-500.0,0.00029863,4]
[328711049,1717721444184,-500.0,0.00029863,4]
[328711050,1717721444196,-500.0,0.00029863,4]
[328711051,1717721444207,-500.0,0.00029863,4]
[328711052,1717721444217,-500.0,0.00029863,4]
[328711053,1717721444227,-500.0,0.00029863,4]
[328711054,1717721444238,-415.84,0.00029863,4]
[328711055,1717721444247,-463.45781627,0.00029863,4]
[328711056,1717721444258,-200.0,0.00029863,4]
[328711057,1717721444268,-202.96085876,0.00029863,4]
[328711058,1717721444278,-500.0,0.00029863,4]
[328711059,1717721444288,-500.0,0.00029863,4]
[328711060,1717721444298,-500.0,0.00029863,4]
[328711061,1717721444310,-500.0,0.00029863,4]
[328711062,1717721444320,-500.0,0.00029863,4]
[328711063,1717721444330,-525.23704124,0.00029863,4]
[328711064,1717721444339,-523.76515855,0.00029863,4]
[328711065,1717721444348,-500.0,0.00029863,4]
[328711066,1717721444358,-500.0,0.00029863,4]
[328711067,1717721444368,-500.0,0.00029863,4]
[328711068,1717721444377,-500.0,0.00029863,4]
[328711069,1717721444387,-500.0,0.00029863,4]
[328711070,1717721444396,-500.0,0.00029863,4]
[328711071,1717721444405,-592.45,0.00029863,4]
[328711072,1717721444414,-500.0,0.00029863,4]
[328711073,1717721444423,-500.0,0.00029863,4]
[328711074,1717721444433,-500.0,0.00029863,4]
[328711075,1717721444442,-500.0,0.00029863,4]
[328711076,1717721444451,-500.0,0.00029863,4]
[328711077,1717721444460,-296.75333924,0.00029863,4]
[328711078,1717721444469,-500.0,0.00029863,4]
[328711079,1717721444479,-521.77628435,0.00029863,4]
[328711080,1717721444488,-500.0,0.00029863,4]
[328711081,1717721444498,-500.0,0.00029863,4]
[328711082,1717721444508,-500.0,0.00029863,4]
[328711083,1717721444517,-500.0,0.00029863,4]
[328711084,1717721444527,-510.68386519,0.00029863,4]
[328711085,1717721444536,-500.0,0.00029863,4]
[328711086,1717721444546,-500.0,0.00029863,4]
[328711087,1717721444555,-500.0,0.00029863,4]
[328711088,1717721444565,-500.0,0.00029863,4]
[328711089,1717721444574,-500.0,0.00029863,4]